fUSD/lending_fUSD_20251024
["ID","MTS","AMOUNT","RATE_DAILY","PERIOD"]
[392269468,1761295389666,-525.20728981,0.00036763,30]
[392269469,1761295389688,-263.12789478,0.00036763,30]
[392269470,1761295389918,-1000.0,0.00036763,2]
[392269471,1761295389954,-151.0,0.00036764,4]
[392269472,1761295389988,-156.587,0.00036764,4]
[392269473,1761295390011,-162.380719,0.00036764,4]
[392269474,1761295390035,-204.55453103,0.00036764,4]
[392269475,1761295390061,-513.21396026,0.00036771,30]
[392269476,1761295390084,-500.0,0.00036771,7]
[392269477,1761295390107,-500.0,0.00036771,7]
[392269478,1761295390132,-500.0,0.00036771,7]
[392269479,1761295390155,-500.0,0.00036771,7]
[392269480,1761295390179,-500.0,0.00036771,7]
[392269481,1761295390204,-500.0,0.00036771,7]
[392269482,1761295390226,-500.0,0.00036771,7]
[392269483,1761295390248,-500.0,0.00036771,7]
[392269484,1761295390272,-500.0,0.00036771,7]
[392269485,1761295390294,-500.0,0.00036771,7]
[392269486,1761295390317,-584.97715092,0.00036771,7]
[392269487,1761295390339,-151.0,0.00036771,2]
[392269488,1761295390361,-257.05575151,0.00036771,2]
[392269489,1761295390388,-151.0,0.00036772,30]
[392269490,1761295390411,-156.211195,0.00036772,30]
[392269491,1761295390434,-151.0,0.00036772,30]
[392269492,1761295390458,-151.0,0.00036772,30]
[392269493,1761295390482,-151.0,0.00036772,30]
[392269494,1761295390507,-151.0,0.00036772,30]
[392269495,1761295390530,-151.0,0.00036772,30]
[392269496,1761295390553,-151.0,0.00036772,30]
[392269497,1761295390581,-153.056033,0.00036772,30]
[392269498,1761295390605,-200.0,0.00036772,2]
[392269499,1761295390629,-497.94828484,0.00036773,5]
[392269500,1761295390653,-500.0,0.00036773,5]
[392269501,1761295390678,-503.60201775,0.00036773,5]
[392269502,1761295390703,-503.0663356,0.00036773,2]
[392269503,1761295390727,-503.70273643,0.00036773,5]
[392269504,1761295390752,-500.0,0.00036773,5]
[392269505,1761295390775,-500.0,0.00036773,2]
[392269506,1761295390802,-500.0,0.00036773,5]
[392269507,1761295390824,-500.0,0.00036774,30]
[392269508,1761295390847,-500.0,0.00036774,30]
[392269509,1761295390873,-500.0,0.00036774,30]
[392269510,1761295390897,-500.0,0.00036774,30]
[392269511,1761295390919,-500.0,0.00036774,30]
[392269512,1761295390942,-500.0,0.00036774,30]
[392269513,1761295390965,-500.0,0.00036774,30]
[392269514,1761295390988,-500.0,0.00036774,30]
[392269515,1761295391015,-500.0,0.00036774,30]
[392269516,1761295391040,-151.0,0.0003679,30]
[392269517,1761295391064,-183.572284,0.0003679,30]
[392269518,1761295391087,-154.071718,0.0003679,30]
[392269519,1761295391109,-154.460102,0.0003679,30]
[392269520,1761295391133,-166.817305,0.0003679,30]
[392269521,1761295391156,-151.0,0.0003679,30]
[392269522,1761295391182,-152.852246,0.0003679,30]
[392269523,1761295391204,-166.817305,0.0003679,30]
[392269524,1761295391229,-151.0,0.0003679,30]
[392269525,1761295391252,-166.817305,0.0003679,30]
[392269526,1761295391277,-283.983787,0.0003679,30]
[392269527,1761295391302,-166.817305,0.0003679,30]
[392269528,1761295391325,-154.556082,0.0003679,30]
[392269529,1761295391349,-263.317467,0.0003679,30]
[392269530,1761295391372,-151.0,0.0003679,30]
[392269531,1761295391395,-273.816879,0.0003679,30]
[392269532,1761295391418,-263.317467,0.0003679,30]
[392269533,1761295391441,-263.317467,0.0003679,30]
[392269534,1761295391463,-263.317467,0.0003679,30]
[392269535,1761295391487,-151.0,0.0003679,30]
[392269536,1761295391510,-151.0,0.0003679,30]
[392269537,1761295391534,-151.0,0.0003679,30]
[392269538,1761295391559,-151.0,0.0003679,14]
[392269539,1761295391582,-151.0,0.0003679,14]
[392269540,1761295391606,-151.0,0.0003679,30]
[392269541,1761295391630,-151.0,0.0003679,30]
[392269542,1761295391652,-151.0,0.0003679,30]
[392269543,1761295391677,-151.0,0.0003679,30]
[392269544,1761295391705,-151.0,0.0003679,30]
[392269545,1761295391729,-151.0,0.0003679,30]
[392269546,1761295391752,-219.308696,0.0003679,30]
[392269547,1761295391777,-154.894936,0.0003679,30]
[392269548,1761295391804,-151.0,0.0003679,30]
[392269549,1761295391829,-151.0,0.0003679,30]
[392269550,1761295391853,-227.806637,0.0003679,30]
[392269551,1761295391877,-151.0,0.0003679,30]
[392269552,1761295391899,-151.0,0.0003679,30]
[392269553,1761295391922,-151.0,0.0003679,30]
[392269554,1761295391944,-151.0,0.0003679,30]
[392269555,1761295391969,-151.0,0.0003679,30]
[392269556,1761295391995,-151.0,0.0003679,30]
[392269557,1761295392022,-151.0,0.0003679,30]
[392269558,1761295392047,-151.0,0.0003679,30]
[392269559,1761295392073,-151.0,0.0003679,30]
[392269560,1761295392097,-151.0,0.0003679,30]
[392269561,1761295392120,-151.0,0.0003679,30]
[392269562,1761295392143,-151.0,0.0003679,30]
[392269563,1761295392166,-173.199258,0.0003679,30]
[392269564,1761295392191,-360.3,0.0003679,14]
[392269565,1761295392217,-174.792024,0.0003679,30]
[392269566,1761295392244,-174.792024,0.0003679,30]
[392269567,1761295392269,-174.792024,0.0003679,30]
[392269568,1761295392291,-174.792024,0.0003679,30]
[392269569,1761295392313,-151.0,0.0003679,30]
[392269570,1761295392336,-151.0,0.0003679,30]
[392269571,1761295392359,-151.0,0.0003679,30]
[392269572,1761295392383,-151.0,0.0003679,30]
[392269573,1761295392405,-159.223497,0.0003679,30]
[392269574,1761295392427,-151.0,0.0003679,30]
[392269575,1761295392451,-289.767378,0.0003679,30]
[392269576,1761295392473,-151.0,0.0003679,30]
[392269577,1761295392496,-289.767378,0.0003679,30]
[392269578,1761295392519,-151.0,0.0003679,30]
[392269579,1761295392543,-289.767378,0.0003679,30]
[392269580,1761295392567,-447.434541,0.0003679,30]
[392269581,1761295392593,-289.767378,0.0003679,30]
[392269582,1761295392619,-447.434541,0.0003679,30]
[392269583,1761295392640,-151.0,0.0003679,30]
[392269584,1761295392664,-447.434541,0.0003679,30]
[392269585,1761295392687,-447.434541,0.0003679,30]
[392269586,1761295392710,-151.0,0.0003679,30]
[392269587,1761295392733,-158.932779,0.0003679,30]
[392269588,1761295392979,-151.0,0.0003679,30]
[392269589,1761295393005,-151.0,0.0003679,30]
[392269590,1761295393029,-151.0,0.0003679,30]
[392269591,1761295393052,-151.0,0.0003679,30]
[392269592,1761295393075,-151.0,0.0003679,30]
[392269593,1761295393098,-151.0,0.0003679,30]
[392269594,1761295393122,-234.516619,0.0003679,30]
[392269595,1761295393144,-151.0,0.0003679,30]
[392269596,1761295393167,-234.516619,0.0003679,30]
[392269597,1761295393196,-151.0,0.0003679,30]
[392269598,1761295393220,-234.516619,0.0003679,30]
[392269599,1761295393243,-151.0,0.0003679,30]
[392269600,1761295393266,-151.0,0.0003679,30]
[392269601,1761295393288,-234.516619,0.0003679,30]
[392269602,1761295393311,-151.0,0.0003679,30]
[392269603,1761295393336,-151.0,0.0003679,30]
[392269604,1761295393360,-417.44174,0.0003679,30]
[392269605,1761295393383,-151.0,0.0003679,30]
[392269606,1761295393408,-151.0,0.0003679,30]
[392269607,1761295393432,-151.0,0.0003679,30]
[392269608,1761295393457,-417.44174,0.0003679,30]
[392269609,1761295393480,-151.0,0.0003679,30]
[392269610,1761295393503,-417.44174,0.0003679,30]
[392269611,1761295393526,-151.0,0.0003679,30]
[392269612,1761295393549,-417.44174,0.0003679,30]
[392269613,1761295393572,-160.101597,0.0003679,30]
[392269614,1761295393594,-151.0,0.0003679,30]
[392269615,1761295393616,-506.902855,0.0003679,30]
[392269616,1761295393640,-506.902855,0.0003679,30]
[392269617,1761295393663,-506.902855,0.0003679,30]
[392269618,1761295393685,-506.902855,0.0003679,30]
[392269619,1761295393707,-151.0,0.0003679,30]
[392269620,1761295393729,-151.0,0.0003679,30]
[392269621,1761295393751,-153.479678,0.0003679,30]
[392269622,1761295393774,-214.638505,0.0003679,30]
[392269623,1761295393796,-214.638505,0.0003679,30]
[392269624,1761295393818,-214.638505,0.0003679,30]
[392269625,1761295393840,-151.0,0.0003679,30]
[392269626,1761295393863,-214.638505,0.0003679,30]
[392269627,1761295393885,-151.0,0.0003679,30]
[392269628,1761295393906,-151.0,0.0003679,30]
[392269629,1761295393928,-151.0,0.0003679,30]
[392269630,1761295393950,-228.086484,0.0003679,30]
[392269631,1761295393972,-151.0,0.0003679,30]
[392269632,1761295393994,-154.306414,0.0003679,30]
[392269633,1761295394016,-154.306414,0.0003679,30]
[392269634,1761295394038,-152.097625,0.0003679,30]
[392269635,1761295394060,-154.306414,0.0003679,30]
[392269636,1761295394083,-154.306414,0.0003679,30]
[392269637,1761295394107,-162.775804,0.0003679,30]
[392269638,1761295394131,-162.775804,0.0003679,30]
[392269639,1761295394155,-162.775804,0.0003679,30]
[392269640,1761295394180,-234.551572,0.0003679,30]
[392269641,1761295394206,-162.775804,0.0003679,30]
[392269642,1761295394232,-796.4121,0.0003679,30]
[392269643,1761295394259,-1999.547235,0.0003679,30]
[392269644,1761295394283,-796.4121,0.0003679,30]
[392269645,1761295394308,-796.4121,0.0003679,30]
[392269646,1761295394334,-1999.547235,0.0003679,30]
[392269647,1761295394360,-796.4121,0.0003679,30]
[392269648,1761295394384,-1999.547235,0.0003679,30]
[392269649,1761295394408,-272.261118,0.0003679,30]
[392269650,1761295394431,-151.0,0.0003679,30]
[392269651,1761295394454,-272.261118,0.0003679,30]
[392269652,1761295394477,-1999.547235,0.0003679,30]
[392269653,1761295394500,-272.261118,0.0003679,30]
[392269654,1761295394522,-162.539405,0.0003679,30]
[392269655,1761295394546,-272.261118,0.0003679,30]
[392269656,1761295394571,-162.539405,0.0003679,30]
[392269657,1761295394594,-154.782639,0.0003679,30]
[392269658,1761295394615,-162.539405,0.0003679,30]
[392269659,1761295394639,-151.901811,0.0003679,30]
[392269660,1761295394663,-162.539405,0.0003679,30]
[392269661,1761295394690,-151.0,0.0003679,30]
[392269662,1761295394714,-151.0,0.0003679,30]
[392269663,1761295394738,-151.0,0.0003679,30]
[392269664,1761295394760,-151.0,0.0003679,30]
[392269665,1761295394782,-151.0,0.0003679,30]
[392269666,1761295394804,-151.0,0.0003679,30]
[392269667,1761295394826,-361.986087,0.0003679,30]
[392269668,1761295394848,-151.0,0.0003679,30]
[392269669,1761295394873,-151.0,0.0003679,30]
[392269670,1761295394896,-361.986087,0.0003679,30]
[392269671,1761295394920,-272.078738,0.0003679,30]
[392269672,1761295394942,-361.986087,0.0003679,30]
[392269673,1761295394965,-272.078738,0.0003679,30]
[392269674,1761295394986,-361.986087,0.0003679,30]
[392269675,1761295395010,-190.202171,0.0003679,30]
[392269676,1761295395032,-272.078738,0.0003679,30]
[392269677,1761295395054,-190.202171,0.0003679,30]
[392269678,1761295395076,-272.078738,0.0003679,30]
[392269679,1761295395099,-808.557106,0.0003679,30]
[392269680,1761295395120,-152.635899,0.0003679,30]
[392269681,1761295395142,-151.0,0.0003679,30]
[392269682,1761295395163,-151.0,0.0003679,30]
[392269683,1761295395188,-190.202171,0.0003679,30]
[392269684,1761295395210,-151.0,0.0003679,30]
[392269685,1761295395234,-206.087673,0.0003679,30]
[392269686,1761295395258,-808.557106,0.0003679,30]
[392269687,1761295395281,-190.202171,0.0003679,30]
[392269688,1761295395305,-187.081224,0.0003679,30]
[392269689,1761295395331,-151.0,0.0003679,30]
[392269690,1761295395354,-206.087673,0.0003679,30]
[392269691,1761295395377,-808.557106,0.0003679,30]
[392269692,1761295395402,-151.0,0.0003679,30]
[392269693,1761295395425,-151.0,0.0003679,30]
[392269694,1761295395448,-151.0,0.0003679,30]
[392269695,1761295395472,-206.087673,0.0003679,30]
[392269696,1761295395496,-808.557106,0.0003679,30]
[392269697,1761295395519,-151.0,0.0003679,30]
[392269698,1761295395542,-151.0,0.0003679,30]
[392269699,1761295395563,-151.0,0.0003679,30]
[392269700,1761295395585,-151.0,0.0003679,30]
[392269701,1761295395607,-206.087673,0.0003679,30]
[392269702,1761295395628,-151.0,0.0003679,30]
[392269703,1761295395650,-151.0,0.0003679,30]
[392269704,1761295395672,-267.927669,0.0003679,30]
[392269705,1761295395695,-151.0,0.0003679,30]
[392269706,1761295395949,-447.471548,0.0003679,30]
[392269707,1761295395972,-151.0,0.0003679,30]
[392269708,1761295395994,-151.0,0.0003679,30]
[392269709,1761295396017,-447.471548,0.0003679,30]
[392269710,1761295396040,-447.471548,0.0003679,30]
[392269711,1761295396062,-151.0,0.0003679,30]
[392269712,1761295396086,-447.471548,0.0003679,30]
[392269713,1761295396109,-158.121996,0.0003679,30]
[392269714,1761295396133,-151.0,0.0003679,30]
[392269715,1761295396156,-202.06786,0.0003679,30]
[392269716,1761295396180,-151.0,0.0003679,30]
[392269717,1761295396206,-151.0,0.0003679,30]
[392269718,1761295396231,-151.0,0.0003679,30]
[392269719,1761295396254,-151.436349,0.0003679,30]
[392269720,1761295396276,-151.0,0.0003679,30]
[392269721,1761295396298,-151.0,0.0003679,30]
[392269722,1761295396320,-623.224981,0.0003679,30]
[392269723,1761295396342,-623.224981,0.0003679,30]
[392269724,1761295396366,-623.224981,0.0003679,30]
[392269725,1761295396388,-151.0,0.0003679,30]
[392269726,1761295396411,-623.224981,0.0003679,30]
[392269727,1761295396434,-151.0,0.0003679,30]
[392269728,1761295396456,-151.0,0.0003679,30]
[392269729,1761295396478,-151.0,0.0003679,15]
[392269730,1761295396502,-151.0,0.0003679,15]
[392269731,1761295396525,-5148.014596,0.0003679,30]
[392269732,1761295396548,-151.0,0.0003679,30]
[392269733,1761295396571,-5148.014596,0.0003679,30]
[392269734,1761295396592,-151.0,0.0003679,30]
[392269735,1761295396614,-151.0,0.0003679,30]
[392269736,1761295396639,-151.0,0.0003679,30]
[392269737,1761295396665,-5148.014596,0.0003679,30]
[392269738,1761295396690,-151.0,0.0003679,30]
[392269739,1761295396714,-153.170242,0.0003679,30]
[392269740,1761295396739,-151.0,0.0003679,30]
[392269741,1761295396760,-151.0,0.0003679,30]
[392269742,1761295396784,-5148.014596,0.0003679,30]
[392269743,1761295396805,-151.0,0.0003679,30]
[392269744,1761295396828,-151.0,0.0003679,30]
[392269745,1761295396850,-515.315031,0.0003679,30]
[392269746,1761295396873,-151.0,0.0003679,30]
[392269747,1761295396895,-173.888232,0.0003679,30]
[392269748,1761295396919,-173.888232,0.0003679,30]
[392269749,1761295396944,-515.315031,0.0003679,30]
[392269750,1761295396969,-322.446415,0.0003679,30]
[392269751,1761295396995,-173.888232,0.0003679,30]
[392269752,1761295397017,-151.0,0.0003679,30]
[392269753,1761295397041,-515.315031,0.0003679,30]
[392269754,1761295397065,-151.0,0.0003679,30]
[392269755,1761295397090,-173.888232,0.0003679,30]
[392269756,1761295397114,-226.860543,0.0003679,30]
[392269757,1761295397138,-322.446415,0.0003679,30]
[392269758,1761295397165,-515.315031,0.0003679,30]
[392269759,1761295397194,-322.446415,0.0003679,30]
[392269760,1761295397219,-226.860543,0.0003679,30]
[392269761,1761295397241,-151.0,0.0003679,30]
[392269762,1761295397262,-322.446415,0.0003679,30]
[392269763,1761295397285,-226.860543,0.0003679,30]
[392269764,1761295397307,-151.0,0.0003679,30]
[392269765,1761295397329,-151.0,0.0003679,30]
[392269766,1761295397351,-226.860543,0.0003679,30]
[392269767,1761295397374,-151.0,0.0003679,30]
[392269768,1761295397398,-151.0,0.0003679,30]
[392269769,1761295397421,-151.0,0.0003679,30]
[392269770,1761295397443,-155.279864,0.0003679,30]
[392269771,1761295397464,-153.485852,0.0003679,30]
[392269772,1761295397487,-513.8955225,0.00036799,30]
[392269773,1761295397510,-52168.58,0.000368,14]
[392269774,1761295397532,-7876.16,0.000368,2]
[392269775,1761295397555,-734.26,0.000368,30]
[392269776,1761295397577,-1357.71,0.000368,14]
[392269777,1761295397599,-3100.0,0.000368,13]
[392269778,1761295397621,-150.07,0.00036862,2]
[392269779,1761295397644,-3900.0,0.000369,13]
[392269780,1761295397666,-200.0,0.00036936,2]
[392269781,1761295397689,-200.0,0.00036936,2]
[392269782,1761295397715,-153.510727,0.0003698,30]
[392269783,1761295397738,-151.0,0.0003698,30]
[392269784,1761295397761,-151.0,0.0003698,30]
[392269785,1761295397784,-151.0,0.0003698,30]
[392269786,1761295397807,-151.0,0.0003698,30]
[392269787,1761295397829,-151.0,0.0003698,30]
[392269788,1761295397852,-151.0,0.0003698,30]
[392269789,1761295398317,57330.9383212,0.0003678,3]
[392269790,1761295398355,151.0,0.0003679,30]
[392269791,1761295398386,38220.6255475,0.0003679,3]
[392269792,1761295398697,19110.3127737,0.0003695,3]
[392269793,1761295398758,150.0,0.00036,2]
[392269794,1761295399284,150.0,0.00037,2]
[392269796,1761295399556,257.0557515,0.00036773,2]
[392269797,1761295401630,151.0,0.00033635,2]
[392269798,1761295402136,151.0,0.0003679,30]
[392269799,1761295402490,271.6,0.00036173,2]
[392269801,1761295403794,1000.0,0.00035393,2]
[392269803,1761295404306,150.0,0.00028,2]
[392269804,1761295404565,1000.0,0.00035667,2]
[392269805,1761295404854,1000.0,0.00035941,2]
[392269806,1761295405231,1000.0,0.00036215,2]
[392269807,1761295405370,151.0,0.0003679,30]
[392269808,1761295405915,1000.0,0.00036489,2]
[392269809,1761295406350,1000.0,0.00036763,2]
[392269810,1761295407203,151.0,0.0003679,30]
[392269811,1761295407435,150.0,0.00029,2]
[392269812,1761295408906,151.0,0.0003679,30]
[392269814,1761295410734,151.0,0.0003679,30]
[392269815,1761295411945,151.0,0.0003679,30]
[392269817,1761295412789,203.902628,0.0003679,30]
[392269818,1761295412819,231.813902,0.0003679,30]
[392269819,1761295414174,231.813902,0.0003679,30]
[392269820,1761295415609,231.813902,0.0003679,30]
[392269821,1761295416467,151.0,0.0003679,30]
[392269822,1761295416748,151.0,0.0003679,30]
[392269823,1761295416939,151.0,0.0003679,30]
[392269824,1761295417073,231.813902,0.0003679,30]
[392269825,1761295417251,151.0,0.0003679,30]
[392269827,1761295417614,151.0,0.00035419,2]
[392269828,1761295418375,151.0,0.0003679,30]
[392269830,1761295419306,151.0,0.0003679,30]
[392269831,1761295420472,151.0,0.0003679,30]
[392269832,1761295421114,637.12968,0.0003679,30]
[392269834,1761295422574,25950.5014839,0.00036806,2]
[392269835,1761295422617,151.0,0.0003679,30]
[392269836,1761295422720,637.12968,0.0003679,30]
[392269837,1761295422957,357.947633,0.0003679,30]
[392269838,1761295423054,151.0,0.0003679,30]
[392269840,1761295423795,151.0,0.0003679,30]
[392269841,1761295424041,797.29,0.000368,30]
[392269842,1761295424286,151.0,0.0003679,30]
[392269843,1761295424353,637.12968,0.0003679,30]
[392269844,1761295424775,151.0,0.0003679,30]
[392269846,1761295425030,357.947633,0.0003679,30]
[392269847,1761295426042,151.0,0.0003679,30]
[392269848,1761295426367,637.12968,0.0003679,30]
[392269849,1761295426462,947.81474592,0.00036667,2]
[392269851,1761295427006,357.947633,0.0003679,30]
[392269852,1761295427538,151.0,0.0003679,30]
[392269854,1761295428987,357.947633,0.0003679,30]
[392269855,1761295429835,151.0,0.0003679,30]
[392269856,1761295429987,151.0,0.0003679,30]
[392269857,1761295430020,239.0,0.00037,2]
[392269861,1761295434449,210.653974,0.0003679,30]
[392269862,1761295434496,151.0,0.00035503,2]
[392269863,1761295434872,151.0,0.0003679,30]
[392269864,1761295435881,210.653974,0.0003679,30]
[392269866,1761295436339,170.86406,0.00037,2]
[392269867,1761295437446,151.0,0.0003679,30]
[392269871,1761295438885,210.653974,0.0003679,30]
[392269872,1761295442031,210.653974,0.0003679,30]
[392269875,1761295442941,300.0,0.00036767,120]
[392269876,1761295443060,300.0,0.00036767,120]
[392269878,1761295448118,171.0,0.00031,120]
[392269880,1761295449866,153.066289,0.0003679,30]
[392269881,1761295450810,151.0,0.0003556,2]
[392269882,1761295451739,187.613295,0.0003679,30]
[392269885,1761295453500,187.613295,0.0003679,30]
[392269887,1761295454989,187.613295,0.0003679,30]
[392269888,1761295455086,289.58887,0.0003679,30]
[392269890,1761295456858,187.613295,0.0003679,30]
[392269891,1761295456923,289.58887,0.0003679,30]
[392269896,1761295458894,289.58887,0.0003679,30]
[392269897,1761295460452,289.58887,0.0003679,30]
[392269898,1761295461702,151.0,0.0003679,30]
[392269899,1761295466523,1357.71,0.000368,14]
[392269900,1761295466752,151.0,0.00035561,2]
[392269906,1761295473009,155.0,0.00036766,2]
[392269907,1761295473647,500.0,0.00036766,15]
[392269908,1761295473682,470.53795519,0.00036766,15]
[392269909,1761295473809,167.09671021,0.00036766,15]
[392269910,1761295473867,304.43902637,0.00036766,15]
[392269911,1761295473899,500.0,0.00036766,15]
[392269915,1761295475540,500.0,0.00036766,15]
[392269916,1761295475648,232.77,0.00036766,15]
[392269919,1761295479093,3447.55406,0.00037,2]
[392269920,1761295483164,151.0,0.00035504,2]
[392269922,1761295487432,1000.0,0.00035397,2]
[392269924,1761295487754,1000.0,0.00035671,2]
[392269925,1761295488178,1000.0,0.00035945,2]
[392269926,1761295488465,1000.0,0.00036219,2]
[392269928,1761295489066,1000.0,0.00036493,2]
[392269929,1761295489121,1000.0,0.00036767,2]
[392269934,1761295494224,2144.64,0.00036172,37]
[392269941,1761295499501,151.0,0.00035474,2]
[392269946,1761295512473,150.0,0.00037,2]
[392269947,1761295513932,150.0,0.0003457,7]
[392269948,1761295513999,150.0,0.0003457,7]
[392269949,1761295514080,150.0,0.0003649,7]
[392269950,1761295514114,150.0,0.0003457,7]
[392269951,1761295515253,1403.70740853,0.00036667,2]
[392269952,1761295517280,150.0,0.0003457,7]
[392269957,1761295520679,150.0,0.0003457,7]
[392269958,1761295520717,150.0,0.0003457,7]
[392269959,1761295521770,170.86406702,0.00037,2]
[392269962,1761295526724,882.35588882,0.00036667,2]
[392269963,1761295529754,251.55,0.00036196,120]
[392269964,1761295531159,150.0,0.0003457,7]
[392269965,1761295531241,150.0,0.0003457,7]
[392269968,1761295532578,150.0,0.0003457,7]
[392269973,1761295534368,150.0,0.0003457,7]
[392269974,1761295534413,150.0,0.0003585,7]
[392269978,1761295538835,624.05500206,0.00036667,9]
[392269984,1761295554695,2356.89173409,0.00036667,2]
[392270024,1761295599163,2305.04,0.00015009,2]
[392270065,1761295685624,-171.41325894,0.00036665,15]
[392270120,1761295831915,-151.0,0.00033067,2]
[392270121,1761295831925,-9031.28,0.00035962,2]
[392270122,1761295831934,-150.0,0.00035962,2]
[392270123,1761295831944,-13582.11853434,0.00036665,2]
[392270124,1761295831953,-5978.16071287,0.00036667,2]
[392270142,1761295836958,-155.49046206,0.00036667,2]
[392270143,1761295838368,-5249.0309477,0.00036667,2]
[392270144,1761295838379,-400.0,0.000367,13]
[392270145,1761295838388,-152.0,0.00036724,3]
[392270146,1761295838398,-156.35802683,0.00036755,2]
[392270147,1761295838409,-153.49,0.00036755,2]
[392270148,1761295838420,-500.0,0.00036758,30]
[392270149,1761295838429,-265.92626081,0.00036763,30]
[392270150,1761295838439,-213.10731846,0.00036764,15]
[392270151,1761295838448,-500.0,0.00036764,15]
[392270152,1761295838458,-316.96769715,0.00036764,15]
[392270153,1761295838468,-329.37656863,0.00036764,15]
[392270154,1761295838478,-163.15722819,0.00036764,15]
[392270155,1761295838488,-143858.69926638,0.00036765,30]
[392270156,1761295838497,-155.782,0.00036765,2]
[392270157,1761295838507,-17737.14075648,0.00036765,2]
[392270158,1761295838522,-6643.63724891,0.00036765,2]
[392270159,1761295838561,-406.60722399,0.00036765,2]
[392270164,1761295840532,-691.10317124,0.00036765,2]
[392270165,1761295840543,-4289.61028403,0.00036765,2]
[392270166,1761295840558,-1288687.84385692,0.00036765,2]
[392270167,1761295840567,-15127.31174997,0.00036765,3]
[392270168,1761295840576,-11254.43767157,0.00036765,2]
[392270169,1761295840595,-58412.5575387,0.00036765,2]
[392270170,1761295840606,-495.67080496,0.00036765,3]
[392270171,1761295840615,-239.78605418,0.00036765,3]
[392270172,1761295840625,-15769.30237295,0.00036765,2]
[392270173,1761295840635,-1863.46704841,0.00036765,2]
[392270174,1761295840644,-543.8414245,0.00036765,2]
[392270175,1761295840654,-1134.4968281,0.00036765,2]
[392270176,1761295840664,-2178.83218282,0.00036765,5]
[392270177,1761295840673,-408.62851779,0.00036765,2]
[392270178,1761295840683,-1504.94388959,0.00036765,2]
[392270179,1761295840693,-24743.74486505,0.00036765,2]
[392270180,1761295840703,-20572.93366995,0.00036765,2]
[392270181,1761295840713,-2475.34258008,0.00036765,2]
[392270182,1761295840723,-205.93061616,0.00036765,2]
[392270183,1761295840733,-876.45726366,0.00036765,2]
[392270184,1761295840744,-505.59527868,0.00036765,2]
[392270185,1761295840754,-287.09477558,0.00036765,2]
[392270186,1761295840766,-5773.42644789,0.00036765,2]
[392270187,1761295840776,-1130.56257031,0.00036765,2]
[392270188,1761295840785,-4649.45781158,0.00036765,2]
[392270189,1761295840794,-1716.46822014,0.00036765,2]
[392270190,1761295840804,-1050.29054362,0.00036765,2]
[392270191,1761295840813,-12814.02737037,0.00036765,2]
[392270192,1761295840823,-160.39684713,0.00036765,2]
[392270193,1761295840833,-202.52369443,0.00036765,2]
[392270194,1761295840842,-464.96506262,0.00036765,120]
[392270195,1761295840851,-754.0018488,0.00036765,2]
[392270196,1761295840860,-4266.0,0.00036765,2]
[392270197,1761295840870,-1341.01260163,0.00036765,2]
[392270198,1761295840879,-151.57536982,0.00036765,2]
[392270199,1761295840888,-184.73256924,0.00036765,2]